Cogmind - Beta 10.1 @@@ ROGUE MODE // 2020.09.25 @ 18:56:47 // Winter2019/RPGLIKE Player: Hermelin Result: Destroyed by as-66989 with Assembled Heavy Rifle Performance ------------- Evolutions (3) 1500 Regions Visited (12) 2400 Robots Destroyed (269) 1345 Value Destroyed (6579) 6579 Prototype IDs (57) 1140 Alien Tech Used (0) 0 Bonus (3762) 3762 TOTAL SCORE: 16726 Bonus ------- Triggered High Security 500 High Alert Combat Kills 754 Follower Combat Kills 941 Aligned with FarCom 300 Met Imprinter 300 Destroyed Z-Imprinter 1000 Triggered Deep Caves Wall 500 Exposed GOLEM Chamber 500 Friendly Fire -1033 Cogmind --------- Core Integrity 0/750 Matter 240/300 Energy 2267/2300 System Corruption 1% Temperature Cool (34) Movement Hovering (58) Location -7/Deep Caves Parts ------- > --- POWER (2) -------- Enhanced Nuclear Core Zionite Light DM Reactor > --- PROPULSION (4) --- Zionite Glidesys I Zionite Glidesys I Combat Antigrav System > --- UTILITY (10) ----- Zionite Biocell Zionite Biocell Long-range Terrain Scanner Experimental Target Analyzer Advanced Core Analyzer Experimental Armor Integrity Analyzer Improved Maneuvering Thrusters Zionite Light Carapace Advanced Hacking Suite > --- WEAPON (4) ------- Shock Bomb Launcher Power Sword Longsword +1 Spear > --- INVENTORY (5) ---- Protomatter-61 Protomatter-13 Zionite Light Carapace 8R-AWN's Boregun Peak State ------------ > --- POWER ------------ Enhanced Nuclear Core Zionite Light DM Reactor > --- PROPULSION ------- Zionite Glidesys I Zionite Glidesys I Zionite Glidesys I Combat Antigrav System > --- UTILITY ---------- Zionite Biocell Zionite Biocell Long-range Terrain Scanner Experimental Target Analyzer Advanced Core Analyzer Experimental Armor Integrity Analyzer Advanced Transmission Jammer Zionite Light Carapace Improved Shield Generator Advanced Hacking Suite > --- WEAPON ----------- Shock Bomb Launcher Power Sword Longsword +1 Spear > --- INVENTORY -------- Protomatter Protomatter Medium Reflective Plating 8R-AWN's Boregun [Rating: 126] Favorites ----------- Power Light Angular Momentum Engine Engine Light Angular Momentum Engine Power Core Enhanced Nuclear Core Reactor Zionite Light DM Reactor Propulsion Combat Airjet Treads Light Treads Leg Improved Titanium Leg Hover Unit Combat Airjet Flight Unit Improved VTOL Module Utility Improved Light Armor Plating Device Improved Terrain Scanner Storage Zionite Biocell Processor Advanced Core Analyzer Hackware Hacking Suite Protection Improved Light Armor Plating Weapon Autogun Energy Gun Improved EM Shotgun Energy Cannon Advanced Beam Cannon Ballistic Gun Autogun Launcher Shock Bomb Launcher Impact Weapon Powered Hammer Slashing Weapon Longsword +1 Piercing Weapon Spear Build | -11 -10 -10 -9 -9 -9 -8 -8 -7 -7 -7 -7 -7 ------- Run | Scr Mat Min Mat Min Exi Min Mat Fac Low Low Zio Dee Slots Evolved 16 | 3 2 1 3 1 1 2 1 2 . . . . Power 1 | . . . . . . 1 . . . . . . Propulsion 3 | 1 . . . 1 1 . . . . . . . Utility 9 | 1 1 1 3 . . 1 1 1 . . . . Weapon 3 | 1 1 . . . . . . 1 . . . . Parts Attached 143 | 8 16 2 23 3 23 2 22 20 . . 10 14 Power 15 | 1 1 . 4 . 2 . 2 2 . . . 3 Engine 9 | 1 1 . 4 . 2 . 1 . . . . . Core 4 | . . . . . . . 1 2 . . . 1 Reactor 2 | . . . . . . . . . . . . 2 Propulsion 26 | 2 3 . 3 1 8 . 3 3 . . . 3 Treads 8 | 2 3 . 3 . . . . . . . . . Leg 2 | . . . . . 1 . . 1 . . . . Wheel . | . . . . . . . . . . . . . Hover 15 | . . . . 1 7 . 2 2 . . . 3 Flight 1 | . . . . . . . 1 . . . . . Utility 63 | 2 4 2 11 2 8 1 6 10 . . 9 8 Device 19 | 2 . . . . 3 . 3 7 . . 3 1 Storage 2 | . . . . . . . . . . . . 2 Processor 11 | . 1 . . . 4 . 1 . . . 5 . Hackware 7 | . 2 1 . . . 1 1 1 . . 1 . Protection 24 | . 1 1 11 2 1 . 1 2 . . . 5 Artifact . | . . . . . . . . . . . . . Weapon 39 | 3 8 . 5 . 5 1 11 5 . . 1 . Energy Gun 11 | 1 3 . 4 . . 1 2 . . . . . Energy Cannon 1 | . . . 1 . . . . . . . . . Ballistic Gun 13 | 2 5 . . . 2 . 4 . . . . . Ballistic Cannon . | . . . . . . . . . . . . . Launcher 2 | . . . . . 1 . . 1 . . . . Special Weapon . | . . . . . . . . . . . . . Impact Weapon 4 | . . . . . . . 1 3 . . . . Slashing Weapon 7 | . . . . . 2 . 4 . . . 1 . Piercing Weapon 1 | . . . . . . . . 1 . . . . Special Melee Weapon . | . . . . . . . . . . . . . Unidentified Prototypes 21 | . . . 3 . 6 . 2 1 . . 4 5 Parts Lost 2 | . 1 . . . . . . . . . . 1 Power . | . . . . . . . . . . . . . Propulsion . | . . . . . . . . . . . . . Utility 2 | . 1 . . . . . . . . . . 1 Weapon . | . . . . . . . . . . . . . Highest Loss Streak 1 | . 1 . . . . . . . . . . 1 Average Slot Usage (%) 98 | . 97 93 98 100 99 97 99 99 100 100 99 99 Engine 7 | . 12 10 7 7 6 5 8 9 . . . . Core 1 | . . . . . . . 1 1 10 10 10 6 Treads 9 | . 24 20 15 14 10 . . . . . . . Hover 10 | . . . . 5 10 24 22 21 20 20 20 19 Device 10 | . 17 10 7 7 7 5 12 11 15 15 14 14 Processor 8 | . 2 . . . 6 24 19 15 15 15 15 15 Hackware 9 | . 8 20 15 4 . 1 6 15 15 15 15 9 Protection 16 | . . 3 25 38 34 12 6 5 5 5 5 5 Energy Gun 5 | . 12 10 7 7 5 1 4 . . . . . Ballistic Gun 9 | . 18 20 15 14 9 4 2 . . . . . Launcher 1 | . . . . . 1 . . 4 5 5 5 5 Slashing Weapon 3 | . . . . . 3 12 8 5 5 5 7 10 Naked Turns . | . . . . . . . . . . . . . Heaviest Build 49 | 11 14 17 37 37 41 27 41 46 44 44 44 49 Greatest Support 101 | 45 45 45 49 49 101 101 101 101 101 101 101 79 Greatest Overweight (x) 4 | . . . . . 3 . 4 4 . . . 1 Average Overweight (x) . | . . . . . . . . . . . . . Largest Inventory Capacity 5 | 2 2 2 4 4 4 4 4 5 5 5 5 5 Average Capacity 3 | 1 2 2 3 4 4 4 4 4 5 5 5 5 Most Carried 5 | 2 2 2 4 4 4 4 4 5 5 5 5 5 Average Carried 3 | 1 1 2 3 3 3 3 3 4 4 4 5 4 Final Capacity 5 | 2 2 2 4 4 4 4 4 5 5 5 5 5 Final Carried 5 | 2 2 2 4 4 4 4 4 5 5 5 5 4 Class Distribution -------------------- 24% | Mutant 19% | Scavenger-Mutant 15% | Hacker-Tank 10% | Scavenger-Tank 10% | Hacker-Skirmisher 7% | Scavenger-Gladiator 6% | Scavenger-Ninja 3% | Hacker-Ninja Dominant Class ---------------- Hacker-Skirmisher | -10/Materials Hacker-Skirmisher | -10/Mines Hacker-Tank | -9/Materials Scavenger-Tank | -9/Mines Scavenger-Mutant | -9/Exiles Scavenger-Mutant | -8/Mines Scavenger-Mutant | -8/Materials Scavenger-Mutant | -7/Factory Scavenger-Ninja | -7/Lower Caves Scavenger-Ninja | -7/Lower Caves Hacker-Ninja | -7/Zion Hacker-Ninja | -7/Deep Caves Resources | -11 -10 -10 -9 -9 -9 -8 -8 -7 -7 -7 -7 -7 ----------- Run | Scr Mat Min Mat Min Exi Min Mat Fac Low Low Zio Dee Matter Collected 3936 | 424 410 132 930 350 675 255 235 240 10 . 82 193 Remotely 401 | 200 201 . . . . . . . . . . . Salvage Created 8951 | 255 795 175 1611 753 727 422 2275 1350 . . . 588 Parts 578 | 6 64 21 118 39 80 30 122 76 . . . 22 Haulers Intercepted 11 | . 1 . 4 . . . 6 . . . . . Recyclers Shooed 3 | . 1 . 1 . . . 1 . . . . . Parts Field Recycled . | . . . . . . . . . . . . . Retrieved Matter . | . . . . . . . . . . . . . Parts Self-Destructed . | . . . . . . . . . . . . . Prevented . | . . . . . . . . . . . . . Kills | -11 -10 -10 -9 -9 -9 -8 -8 -7 -7 -7 -7 -7 ------- Run | Scr Mat Min Mat Min Exi Min Mat Fac Low Low Zio Dee Combat Hostiles Destroyed 196 | 15 19 10 37 13 2 10 40 22 . . . 28 Melee 64 | . . . . . 1 . 35 22 . . . 6 Guns 104 | 15 17 10 36 11 1 10 4 . . . . . AOE 28 | . 2 . 1 2 . . 1 . . . . 22 Classes Destroyed 19 | 3 6 . 2 1 2 1 1 1 . . . 2 Worker 6 | . 2 . 1 . . . . 3 . . . . Builder 3 | . . . 1 1 . . . 1 . . . . Tunneler 7 | 2 1 . . 1 . 2 . 1 . . . . Hauler 11 | . 1 . 4 . . . 6 . . . . . Recycler 6 | 1 2 . 1 1 . . 1 . . . . . Operator 10 | . 2 . 1 . . . 3 4 . . . . Turret 1 | . . . . . 1 . . . . . . . Watcher 12 | . 2 . 5 . . . 4 1 . . . . Swarmer 54 | . 9 7 19 7 . 3 5 4 . . . . Grunt 62 | . 10 3 8 5 . 5 23 8 . . . . Brawler 4 | . . . . . . . 2 2 . . . . Duelist 2 | . . . . 1 . 1 . . . . . . Sentry 24 | . . . 10 . . . 10 4 . . . . Hunter 2 | . . . . . . 1 . 1 . . . . Programmer 3 | . . . . . . . . 3 . . . . Zionite 8 | . . . . . 8 . . . . . . . Z-Light 5 | . . . . . . . . . . . . 5 Assembled 44 | 15 . . . . 7 . . . . . . 22 Golem 1 | . . . . . . . . . . . . 1 Best Kill Streak 23 | 5 4 3 6 4 3 4 5 6 . . . 23 Combat Bots Only 23 | 5 3 3 4 4 1 4 4 4 . . . 23 Max Kills in Single Turn 7 | 2 1 2 4 2 6 1 1 1 . . . 7 Gunslinging 1 | 1 . 1 1 1 . . . . . . . . Exploded 7 | . 1 . 1 1 . . 1 . . . . 7 Melee 1 | . . . . . 1 . 1 1 . . . 1 Uniques/NPCs Destroyed 3 | . . . . . 2 . . . . . . 1 8R-AWN (-9/Exiles) EX-DEC (-9/Exiles) EX-HEX (-9/Exiles) EX-BIN (-9/Exiles) Z-Imprinter (-7/Deep Caves) Combat | -11 -10 -10 -9 -9 -9 -8 -8 -7 -7 -7 -7 -7 -------- Run | Scr Mat Min Mat Min Exi Min Mat Fac Low Low Zio Dee Damage Taken 7556 | 743 725 156 764 272 799 244 769 1532 . . . 1552 Core 5277 | 593 581 120 502 191 468 169 548 1046 . . . 1059 Absorbed by Shields 690 | . . . . . . . 189 200 . . . 301 Redirected to Core 4329 | 519 461 100 386 179 468 123 423 867 . . . 803 Core Remaining (%) 81 | 59 . 100 . . . 66 100 . . . . . Volleys Fired 439 | 48 71 16 86 40 89 39 20 10 . . . 20 Largest 3 | 2 3 3 3 3 3 1 2 1 . . . 1 Hottest 100 | 60 100 86 91 91 91 30 70 36 . . . 36 Shots Fired 882 | 90 169 47 237 120 126 39 24 10 . . . 20 Gun 851 | 90 169 47 237 120 125 39 24 . . . . . Cannon . | . . . . . . . . . . . . . Launcher 31 | . . . . . 1 . . 10 . . . 20 Special . | . . . . . . . . . . . . . Kinetic 543 | 48 94 32 171 80 74 39 5 . . . . . Thermal 4 | . 4 . . . . . . . . . . . Explosive 1 | . . . . . 1 . . . . . . . Electromagnetic 334 | 42 71 15 66 40 51 . 19 10 . . . 20 Robot Hit Streak 34 | 8 9 7 12 17 34 13 15 3 . . . 4 Robot Miss Streak 7 | 5 5 5 7 4 3 3 3 1 . . . 2 Penetration Max 2 | . . . . . 2 1 . . . . . . Secondary Targets 16 | 2 3 3 3 5 . . . . . . . . Max Gunslinging Chain 1 | 1 1 1 1 1 . . . . . . . . Shots Hit Robots 787 | 52 89 27 146 70 144 32 129 70 . . . 28 Core Hits 469 | 30 39 11 69 52 58 18 70 44 . . . 78 Critical Hits 78 | . 1 2 1 . 18 22 22 8 . . . 4 Critical Kills 24 | . 1 1 1 . 2 8 7 4 . . . . Critical Parts Destroyed 48 | . . 1 . . 13 14 13 3 . . . 4 Melee Attacks 248 | . . . . . 32 1 113 74 1 . . 27 Impact 7 | . . . . . . . . 7 . . . . Slashing 236 | . . . . . 32 1 113 66 1 . . 23 Piercing 5 | . . . . . . . . 1 . . . 4 Sneak Attacks 21 | . . . . . . . 14 7 . . . . Combat Hostiles 2 | . . . . . . . 1 1 . . . . Follow-up Attacks 9 | . . . . . 2 . . 4 . . . 3 Damage Inflicted 24260 | 672 1222 423 2205 1202 3893 683 7047 4146 . . . 2767 Guns 7796 | 600 1178 423 2100 1111 1363 666 355 . . . . . Cannons . | . . . . . . . . . . . . . Explosions 3008 | 72 44 . 105 91 392 . 112 414 . . . 1778 Melee 13439 | . . . . . 2138 . 6580 3732 . . . 989 Ramming 17 | . . . . . . 17 . . . . . . Kinetic 4412 | 264 412 272 1214 473 1083 666 28 . . . . . Thermal 569 | 72 68 . 105 91 52 . 112 69 . . . . Explosive 340 | . . . . . 340 . . . . . . . Electromagnetic 5483 | 336 742 151 886 638 280 . 327 345 . . . 1778 Impact 89 | . . . . . . . . 89 . . . . Slashing 13247 | . . . . . 2138 . 6580 3617 . . . 912 Piercing 103 | . . . . . . . . 26 . . . 77 Highest Corruption 2 | . . . 2 2 2 . . 2 . . . 1 Average Corruption 1 | . . . 2 2 1 . . 1 . . . 1 Corruption Purged 4 | . . . . . 2 . . 2 . . . . Effects 52 | . . . 23 12 16 . . 1 . . . . Message Errors 15 | . . . 6 3 5 . . 1 . . . . Heat Flow Errors 5 | . . . 2 2 1 . . . . . . . Energy Discharges 12 | . . . 4 3 5 . . . . . . . Data Loss (minor) 8 | . . . 3 2 3 . . . . . . . Targeting Errors 10 | . . . 7 2 1 . . . . . . . Weapon Failures 2 | . . . 1 . 1 . . . . . . . Overload Shots . | . . . . . . . . . . . . . Overflow Damage 1047 | . . . . . 195 . 571 231 . . . 50 Projectiles . | . . . . . . . . . . . . . Explosions 67 | . . . . . . . . 18 . . . 49 Melee 980 | . . . . . 195 . 571 213 . . . 1 Knockbacks . | . . . . . . . . . . . . . Impact . | . . . . . . . . . . . . . Kinetic . | . . . . . . . . . . . . . Secondary . | . . . . . . . . . . . . . Self-Inflicted Damage 414 | 28 39 . 109 . 59 65 56 7 . . . 51 Shots 13 | 1 1 . 3 . 1 1 1 1 . . . 4 Rammed 1 | . . . . . . 1 . . . . . . Targets Rammed 1 | . . . . . . 1 . . . . . . Kicked . | . . . . . . . . . . . . . Crushed . | . . . . . . . . . . . . . Highest Temperature 380 | 140 138 146 380 227 258 . 30 12 . . . 120 Average Temperature 76 | 71 40 51 105 45 109 . 11 6 . . . 43 Received Heat Transfer 1533 | 140 240 18 138 30 . 54 243 454 . . . 216 Effects 2 | . . . 2 . . . . . . . . . Energy Bleed 2 | . . . 2 . . . . . . . . . Siege Activations . | . . . . . . . . . . . . . Robots Corrupted 1 | . . . 1 . . . . . . . . . Combat Hostiles . | . . . . . . . . . . . . . Parts Fried 12 | . 3 . 3 . . . 2 1 . . . 3 Impact Corruptions . | . . . . . . . . . . . . . Robots Melted . | . . . . . . . . . . . . . Combat Hostiles . | . . . . . . . . . . . . . Parts Melted 1 | . . . . . . . 1 . . . . . Heat Transferred 662 | 150 150 . 50 100 12 . 100 100 . . . . Parts Sabotaged . | . . . . . . . . . . . . . Parts Stolen . | . . . . . . . . . . . . . Parts Stripped . | . . . . . . . . . . . . . Power Chain Reactions 12 | 1 2 . 4 2 1 . 1 1 . . . . Missiles Intercepted . | . . . . . . . . . . . . . Alert | -11 -10 -10 -9 -9 -9 -8 -8 -7 -7 -7 -7 -7 ------- Run | Scr Mat Min Mat Min Exi Min Mat Fac Low Low Zio Dee Peak Influence 1982 | 30 464 209 416 337 . 309 982 1982 . . . . Initial 282 | . . 139 46 162 . . 70 282 . . . . Average 225 | 3 267 127 170 135 . 183 536 696 . . . . Maximum Alert Level 5 | . 2 1 2 1 . 1 3 5 . . . . Low Security (%) 58 | 100 38 67 62 77 . 67 6 . . . . . Level 1 20 | . 28 32 31 22 . 32 15 37 . . . . Level 2 15 | . 32 . 6 . . . 58 40 . . . . Level 3 2 | . . . . . . . 19 5 . . . . Level 4 . | . . . . . . . . 2 . . . . Level 5 . | . . . . . . . . 9 . . . . High Security . | . . . . . . . . 4 . . . . Max Security . | . . . . . . . . . . . . . Squads Dispatched 28 | . 5 1 3 . . . 7 12 . . . . Investigation 10 | . 3 1 2 . . . 2 2 . . . . Extermination 1 | . . . . . . . . 1 . . . . Reinforcement 11 | . 2 . 1 . . . 3 5 . . . . Assault 3 | . . . . . . . . 3 . . . . Garrison 3 | . . . . . . . 2 1 . . . . Intercept . | . . . . . . . . . . . . . Construction Impeded 2 | . . . . . . . . 2 . . . . Haulers Reinforced . | . . . . . . . . . . . . . Stealth | -11 -10 -10 -9 -9 -9 -8 -8 -7 -7 -7 -7 -7 --------- Run | Scr Mat Min Mat Min Exi Min Mat Fac Low Low Zio Dee Distress Signals 13 | . 3 . 3 . . . 5 2 . . . . Communications Jammed 15 | . . . . . . . 5 10 . . . . Distress Signals 15 | . . . . . . . 5 10 . . . . Times Spotted 343 | 15 34 15 54 14 18 12 74 55 . . . 52 Peak Tracking Total 38 | 4 5 3 4 4 7 4 4 6 . . . 38 Tactical Retreats 31 | . 1 1 2 . 5 2 13 7 . . . . Traps | -11 -10 -10 -9 -9 -9 -8 -8 -7 -7 -7 -7 -7 ------- Run | Scr Mat Min Mat Min Exi Min Mat Fac Low Low Zio Dee Traps Triggered 6 | . . . 2 . . . 2 2 . . . . Indirectly 2 | . . . . . . . . 2 . . . . Trap Hack Attempts . | . . . . . . . . . . . . . Triggered . | . . . . . . . . . . . . . Disarmed 6 | . 6 . . . . . . . . . . . Reprogrammed 3 | . 3 . . . . . . . . . . . Reused . | . . . . . . . . . . . . . Traps Extracted . | . . . . . . . . . . . . . Installed . | . . . . . . . . . . . . . Triggered 2 | . 1 . 1 . . . . . . . . . Machines | -11 -10 -10 -9 -9 -9 -8 -8 -7 -7 -7 -7 -7 ---------- Run | Scr Mat Min Mat Min Exi Min Mat Fac Low Low Zio Dee Machines Disabled 56 | . 2 1 3 2 10 6 . 30 . . . 2 Max in Single Turn 2 | . 1 1 1 1 2 1 . 1 . . . . Garrison Access 2 | . . . . . . . 1 1 . . . . Machines Sabotaged . | . . . . . . . . . . . . . Garrisons Compromised . | . . . . . . . . . . . . . Overloaded Fab Kills . | . . . . . . . . . . . . . Fab Network Shutdowns . | . . . . . . . . . . . . . Hacking | -11 -10 -10 -9 -9 -9 -8 -8 -7 -7 -7 -7 -7 --------- Run | Scr Mat Min Mat Min Exi Min Mat Fac Low Low Zio Dee Machines Accessed 55 | . 10 1 15 2 2 . 15 7 1 1 1 . Terminals 30 | . 7 . 11 1 . . 8 3 . . . . Fabricators . | . . . . . . . . . . . . . Repair Stations 5 | . 1 . 1 . . . 2 1 . . . . Recycling Units 6 | . 2 . 1 . . . 2 1 . . . . Scanalyzers 5 | . . . 2 . . . 2 1 . . . . Garrison Access 2 | . . . . . . . 1 1 . . . . Total Hacks 271 | . 41 1 117 4 2 . 62 39 1 1 3 . Successful 201 | . 27 1 91 1 2 . 41 33 1 1 3 . Failed 68 | . 14 . 25 3 . . 20 6 . . . . Catastrophic 4 | . 1 . 1 . . . 1 1 . . . . Database Lockouts 2 | . . . 1 . . . 1 . . . . . Manual 144 | . 25 . 70 3 1 . 29 12 . . 4 . Terminals 187 | . 31 . 97 3 . . 42 14 . . . . Fabricators . | . . . . . . . . . . . . . Repair Stations 13 | . 5 . 2 . . . 3 3 . . . . Recycling Units 17 | . 5 . 2 . . . 8 2 . . . . Scanalyzers 39 | . . . 16 . . . 6 17 . . . . Garrison Access 6 | . . . . . . . 3 3 . . . . Terminal Hacks 88 | . 13 1 43 1 2 . 19 4 1 1 3 . Record 1 | . . . . . 1 . . . . . . . Part Schematic 6 | . 1 . . . . . 2 . . . 3 . Robot Schematic 1 | . 1 . . . . . . . . . . . Robot Analysis 9 | . 3 . 3 . . . 3 . . . . . Prototype ID Bank 11 | . 1 . 5 . . . 4 1 . . . . Open Door 4 | . . 1 . 1 . . . . 1 1 . . Level Access Points 2 | . . . 2 . . . . . . . . . Branch Access Points 5 | . 1 . 1 . . . 2 1 . . . . Emergency Access Points 1 | . . . 1 . . . . . . . . . Machine Index 2 | . . . 1 . . . 1 . . . . . Terminal Index 5 | . 1 . 1 . . . 2 1 . . . . Repair Station Index 2 | . . . 2 . . . . . . . . . Recycling Unit Index 1 | . . . 1 . . . . . . . . . Scanalyzer Index 1 | . . . 1 . . . . . . . . . Garrison Index 1 | . . . 1 . . . . . . . . . Alert Level 4 | . . . 3 . . . 1 . . . . . Unreport Threat 7 | . . . 4 . . . 3 . . . . . Locate Traps 3 | . 1 . 1 . . . . 1 . . . . Disarm Traps 1 | . 1 . . . . . . . . . . . Reprogram Traps 1 | . 1 . . . . . . . . . . . Surveillance Status 1 | . . . 1 . . . . . . . . . Transport Status 1 | . . . 1 . . . . . . . . . Investigation Status 1 | . . . 1 . . . . . . . . . Hauler Manifests 5 | . 1 . 3 . . . 1 . . . . . Registered Components 2 | . . . 2 . . . . . . . . . Registered Prototypes 1 | . . . 1 . . . . . . . . . Zone Layout 8 | . 1 . 7 . . . . . . . . . EX-Prototype ID Bank 1 | . . . . . 1 . . . . . . . Fabricator Hacks . | . . . . . . . . . . . . . Repair Station Hacks 10 | . 4 . 2 . . . 2 2 . . . . Scan Component 5 | . 2 . 1 . . . 1 1 . . . . Repair 5 | . 2 . 1 . . . 1 1 . . . . Recycling Unit Hacks 6 | . 1 . 1 . . . 3 1 . . . . Report Inventory 5 | . 1 . 1 . . . 2 1 . . . . Retrieve Components 1 | . . . . . . . 1 . . . . . Scanalyzer 35 | . . . 16 . . . 4 15 . . . . Insert Component 14 | . . . 6 . . . 2 6 . . . . Analyze 21 | . . . 10 . . . 2 9 . . . . Garrison Access Hacks 1 | . . . . . . . 1 . . . . . Seal Access 1 | . . . . . . . 1 . . . . . Unauthorized Hacks 61 | . 9 . 29 . . . 12 11 . . . . Terminals 50 | . 8 . 28 . . . 8 6 . . . . Track 20 | . 4 . 11 . . . 2 3 . . . . Assimilate 3 | . . . 3 . . . . . . . . . Botnet 22 | . 3 . 11 . . . 5 3 . . . . Disrupt 1 | . . . 1 . . . . . . . . . Operators 4 | . 1 . 2 . . . 1 . . . . . Fabricators . | . . . . . . . . . . . . . Repair Stations 2 | . . . . . . . 1 1 . . . . Mechanics 2 | . . . . . . . 1 1 . . . . Recycling Units 6 | . 1 . 1 . . . 3 1 . . . . Mask 1 | . . . . . . . 1 . . . . . Tunnel 5 | . 1 . 1 . . . 2 1 . . . . Scanalyzers . | . . . . . . . . . . . . . Garrison Access 3 | . . . . . . . . 3 . . . . Broadcast 1 | . . . . . . . . 1 . . . . Reprogram 1 | . . . . . . . . 1 . . . . Watchers 1 | . . . . . . . . 1 . . . . Data Cores Recovered 1 | . . . . . . . . 1 . . . . Used 1 | . . . . . . . . 1 . . . . Hacking Detections 40 | . 10 . 10 1 . . 14 5 . . . . Full Trace Events 5 | . 3 . 1 . . . . 1 . . . . Feedback Events . | . . . . . . . . . . . . . Feedback Blocked . | . . . . . . . . . . . . . Robot Schematics Acquired 1 | . 1 . . . . . . . . . . . Robots Built . | . . . . . . . . . . . . . Matter . | . . . . . . . . . . . . . Time . | . . . . . . . . . . . . . Total Robot Build Rating . | . . . . . . . . . . . . . Part Schematics Acquired 19 | . 1 . 6 . . . 3 6 . . 3 . Parts Built . | . . . . . . . . . . . . . Matter . | . . . . . . . . . . . . . Time . | . . . . . . . . . . . . . Total Part Build Rating . | . . . . . . . . . . . . . Parts Repaired 5 | . 2 . 1 . . . 1 1 . . . . Time 196 | . 52 . 38 . . . 68 38 . . . . Parts Recycled . | . . . . . . . . . . . . . Recycled Matter . | . . . . . . . . . . . . . Retrieved Matter . | . . . . . . . . . . . . . Retrieved Components 10 | . . . . . . . 10 . . . . . Parts Scanalyzed 13 | . . . 6 . . . 1 6 . . . . Part Schematics Acquired 13 | . . . 6 . . . 1 6 . . . . Parts Damaged 1 | . . . . . . . . 1 . . . . Bothacking | -11 -10 -10 -9 -9 -9 -8 -8 -7 -7 -7 -7 -7 ------------ Run | Scr Mat Min Mat Min Exi Min Mat Fac Low Low Zio Dee Used RIF Installer . | . . . . . . . . . . . . . Robots Hacked . | . . . . . . . . . . . . . Non-combat . | . . . . . . . . . . . . . Combat . | . . . . . . . . . . . . . Robot Hacks Applied . | . . . . . . . . . . . . . Relay Couplers Released 2 | . . . . . . . . 2 . . . . Programmers 2 | . . . . . . . . 2 . . . . Robots Rewired . | . . . . . . . . . . . . . Allies Hacked 1 | . . . . . . . . 1 . . . . Hacks Repelled . | . . . . . . . . . . . . . Allies | -11 -10 -10 -9 -9 -9 -8 -8 -7 -7 -7 -7 -7 -------- Run | Scr Mat Min Mat Min Exi Min Mat Fac Low Low Zio Dee Total Allies 10 | . . 1 . 1 . . . 2 . . 5 1 Largest Group 6 | . . 1 1 1 . . . 2 . . 5 6 Highest-Rated Group 267 | . . 31 31 31 . . . 70 . . 149 267 Highest-Rated Ally 118 | . . 31 31 31 . . . 54 . . 31 118 Total Orders . | . . . . . . . . . . . . . Ally Attacks 118 | . . 10 1 3 . . . 48 . . . 56 Total Damage 6887 | . . 125 20 63 . . . 2848 . . . 3831 Kills 45 | . . 2 . 1 . . . 27 . . . 15 Allies Corrupted . | . . . . . . . . . . . . . Allies Melted . | . . . . . . . . . . . . . Intel | -11 -10 -10 -9 -9 -9 -8 -8 -7 -7 -7 -7 -7 ------- Run | Scr Mat Min Mat Min Exi Min Mat Fac Low Low Zio Dee Robot Analysis Total 9 | . 3 . 3 . . . 3 . . . . . Derelict Logs Recovered 8 | . . 1 . 1 . . . . 1 3 2 . Drone Launches . | . . . . . . . . . . . . . Drone Recoveries . | . . . . . . . . . . . . . Exploration | -11 -10 -10 -9 -9 -9 -8 -8 -7 -7 -7 -7 -7 ------------- Run | Scr Mat Min Mat Min Exi Min Mat Fac Low Low Zio Dee Turns Passed 18372 | 3804 1708 910 2623 1506 2118 665 1750 1332 298 193 565 900 Spaces Moved 11149 | 749 796 504 1383 730 1338 713 1480 1045 433 282 760 936 Core 7 | 4 . . . . 1 . 1 1 . . . . Treads 4715 | 745 796 504 1383 730 557 . . . . . . . Legs . | . . . . . . . . . . . . . Wheels . | . . . . . . . . . . . . . Hover 6427 | . . . . . 780 713 1479 1044 433 282 760 936 Flight . | . . . . . . . . . . . . . Fastest Speed 50 | 50 160 160 145 145 66 68 68 68 68 68 68 52 Average Speed 107 | 159 160 160 155 145 126 68 70 69 68 68 69 60 Slowest Speed 250 | 160 160 160 160 145 200 68 250 250 68 68 72 130 Overloaded Moves . | . . . . . . . . . . . . . Propulsion Burnouts . | . . . . . . . . . . . . . Robots Hopped . | . . . . . . . . . . . . . Cave-ins Triggered 1 | . . . . 1 . . . . . . . . Exploration Rate (%) 82 | 106 95 98 94 98 91 92 97 29 57 55 85 78 Regions Visited 12 Branch Regions 8 Pre-discovered Areas 10 | . 1 1 1 . 1 . 2 1 . 1 2 . Known Exits Taken 5 | . 1 . 1 . . 1 . 1 . 1 . . Unknown Exits Taken 7 | 1 . 1 . 1 1 . 1 . 1 . 1 . Scrap Searched 12 | . . 1 . 3 . 1 . . 3 1 3 . Spaces Dug 5 | . . . . . . . . 3 1 . . 1 Terrain Destroyed 109 | 5 8 . 16 16 28 28 2 4 1 . . 1 Melee 5 | . . . . . . . . 3 1 . . 1 Projectile 14 | . . . . . 7 7 . . . . . . AOE 90 | 5 8 . 16 16 21 21 2 1 . . . . Terrain Rammed . | . . . . . . . . . . . . . Walls Destroyed . | . . . . . . . . . . . . . Machines Disabled . | . . . . . . . . . . . . . Actions | -11 -10 -10 -9 -9 -9 -8 -8 -7 -7 -7 -7 -7 --------- Run | Scr Mat Min Mat Min Exi Min Mat Fac Low Low Zio Dee Total 16614 | 3266 1088 578 1710 1106 1634 853 2062 1575 435 283 792 1232 Wait 4134 | 2435 173 31 142 309 104 76 337 328 . . 16 183 Move 11137 | 748 795 503 1382 729 1337 712 1479 1044 432 281 759 936 Hop . | . . . . . . . . . . . . . Pick Up 64 | 4 1 . 11 4 17 1 6 9 1 1 . 9 Fast Attach 87 | 8 9 2 10 1 16 1 13 10 . . 7 10 Attach 18 | . . . 4 2 1 1 3 5 . . . 2 Detach 11 | . . . 3 . 1 1 2 4 . . . . Swap 38 | . 7 . 9 . 6 . 6 5 . . 3 2 Drop 138 | 2 12 1 24 4 33 1 18 16 1 1 7 18 Fire 439 | 48 71 16 86 40 89 39 20 10 . . . 20 Melee 233 | . . . . . 30 1 111 68 1 . . 22 Ram 1 | . . . . . . 1 . . . . . . Kick . | . . . . . . . . . . . . . Crush . | . . . . . . . . . . . . . Escape Stasis . | . . . . . . . . . . . . . Rewire 1 | . . . . 1 . . . . . . . . Trap . | . . . . . . . . . . . . . Miscellaneous 313 | 21 20 25 39 16 . 19 67 76 . . . 30 Route ------- -11/Scrapyard -10/Materials (discovered 5 exits: *Mat x3 / *Min x2) -10/Mines (discovered 2 exits: *Mat x2) -9/Materials (discovered 7 exits: *Mat x3 / *Min x2 / *Sto x2) -9/Mines (discovered 4 exits: *Mat x2 / *Exi / *Zio) -9/Exiles (discovered 2 exits: [*Min x2]) -8/Mines (discovered 2 exits: *Mat x2) -8/Materials (discovered 3 exits: *Fac x3) -7/Factory (discovered 3 exits: [*Fac] / *Low x2) -7/Lower Caves -7/Lower Caves (discovered 2 exits: [*Fac] / *Zio) -7/Zion (discovered 2 exits: [*Dee] / [*Pro]) -7/Deep Caves (discovered 1 exit: [*Pro]) History --------- Turn | Location | Event 2 | -11/Scrapyard | Upgraded with Propulsion slot (x1) 2 | -11/Scrapyard | Upgraded with Utility slot (x1) 2 | -11/Scrapyard | Upgraded with Weapon slot (x1) 11 | -11/Scrapyard | Discovered new exit (range 15) 2170 | -11/Scrapyard | Assembled infested the area 3805 | -11/Scrapyard | Entered Materials 3806 | -10/Materials | Build established: Mutant 3919 | -10/Materials | Repaired EM Pulse Gun 3924 | -10/Materials | Discovered new exit (range 16) 3952 | -10/Materials | Core integrity fell below 50% 4036 | -10/Materials | Discovered new exit (range 15) 4324 | -10/Materials | Discovered new exit (range 13) 4338 | -10/Materials | Identified exit to Mines 4442 | -10/Materials | Reached level 2 4455 | -10/Materials | Upgraded with Utility slot (x1) 4455 | -10/Materials | Upgraded with Weapon slot (x1) 4642 | -10/Materials | Discovered new exit (range 10) 5047 | -10/Materials | Build established: Hacker-Skirmisher 5124 | -10/Materials | Core integrity fell below 20% 5475 | -10/Materials | Repaired Lgt. Treads 5513 | -10/Materials | Entered Mines 5515 | -10/Mines | Reached level 3 5515 | -10/Mines | Upgraded with Utility slot (x1) 5904 | -10/Mines | Discovered new exit (range 14) 6004 | -10/Mines | Escorted by a lone wolf Derelict 6024 | -10/Mines | Learned location of Storage (-9) 6116 | -10/Mines | Met a Derelict shopkeep closing up shop 6316 | -10/Mines | Reached level 4 6406 | -10/Mines | Discovered new exit (range 8) 6423 | -10/Mines | Entered Materials 6423 | -9/Materials | Accompanied by 1 ally 6424 | -9/Materials | Identified exit to Mines 6425 | -9/Materials | Reached level 5 6456 | -9/Materials | Upgraded with Utility slot (x2) 6496 | -9/Materials | Identified exit to Storage 6533 | -9/Materials | Identified exit to Materials 6709 | -9/Materials | Reached level 6 6935 | -9/Materials | Build established: Hacker-Tank 6988 | -9/Materials | Central database locked down 7342 | -9/Materials | Reached level 7 7670 | -9/Materials | Repaired Imp. Light Armor Plating 8069 | -9/Materials | Reached level 8 8083 | -9/Materials | Upgraded with Utility slot (x1) 9046 | -9/Materials | Entered Mines 9053 | -9/Mines | Received a Rocket Launcher from a helpful Derelict 9101 | -9/Mines | Reached level 9 9140 | -9/Mines | Deemed a non-threat by the Exiles lab entrance 9141 | -9/Mines | Discovered new exit (range 5) 9224 | -9/Mines | A Derelict revealed a hidden shortcut to a safe place 9351 | -9/Mines | Assembled infested the area 9420 | -9/Mines | Met 8R-AWN 9454 | -9/Mines | Crushed by falling debris 9465 | -9/Mines | Upgraded with Propulsion slot (x1) 9696 | -9/Mines | Met a Derelict who couldn't figure out how to use a Trap Extractor 9762 | -9/Mines | Build established: Scavenger-Tank 10084 | -9/Mines | Received a Mining Laser from a helpful Derelict 10323 | -9/Mines | Discovered exit to Materials (range 5) 10552 | -9/Mines | Entered Exiles 10571 | -9/Exiles | Discovered new exit (range 16) 10642 | -9/Exiles | Welcomed by 8R-AWN 10672 | -9/Exiles | Met EX-HEX 10693 | -9/Exiles | Learned about 8R-AWN's background 10790 | -9/Exiles | Met EX-DEC 10841 | -9/Exiles | Learned location of Zion (-7) 10918 | -9/Exiles | Visited The Gauntlet 11112 | -9/Exiles | Met EX-BIN 11194 | -9/Exiles | Aligned with FarCom system 11195 | -9/Exiles | Given EX-Vault access code 11230 | -9/Exiles | Opened EX-Vault 11265 | -9/Exiles | Warned to stay clear of 0b10 Research branches 11556 | -9/Exiles | Found Longsword +1 11644 | -9/Exiles | Build established: Scavenger-Mutant 11699 | -9/Exiles | Attacked by the Exiles 11831 | -9/Exiles | Core integrity fell below 50% 11852 | -9/Exiles | Destroyed 8R-AWN 11861 | -9/Exiles | Found Prototype Ballistic Gun 11861 | -9/Exiles | Identified 8R-AWN's Boregun 11873 | -9/Exiles | Found Prototype Processor 11873 | -9/Exiles | Identified Exp. Targeting Computer 12108 | -9/Exiles | Destroyed EX-DEC 12156 | -9/Exiles | Destroyed EX-HEX 12178 | -9/Exiles | Destroyed EX-BIN 12199 | -9/Exiles | Found Prototype Device 12199 | -9/Exiles | Identified System Purifier 12459 | -9/Exiles | Upgraded with Propulsion slot (x1) 12579 | -9/Exiles | Found Skeleton Box 12641 | -9/Exiles | Discovered new exit (range 12) 12670 | -9/Exiles | Stole two prototypes: Longsword +1, Skeleton Box 12670 | -9/Exiles | Entered Mines 12672 | -8/Mines | Reached level 10 12680 | -8/Mines | Core integrity fell below 20% 13092 | -8/Mines | Reached level 11 13106 | -8/Mines | Upgraded with Power slot (x1) 13106 | -8/Mines | Upgraded with Utility slot (x1) 13261 | -8/Mines | Discovered exit to Materials (range 5) 13280 | -8/Mines | Discovered exit to Materials (range 11) 13335 | -8/Mines | Entered Materials 13399 | -8/Materials | Garrison activated, responded to threat 13409 | -8/Materials | Reached level 12 13555 | -8/Materials | Discovered new exit (range 14) 13754 | -8/Materials | Build established: Scavenger-Gladiator 13809 | -8/Materials | Repaired Cmb. Antigrav System 13890 | -8/Materials | Discovered new exit (range 13) 14386 | -8/Materials | Reached level 13 14389 | -8/Materials | Upgraded with Utility slot (x1) 14651 | -8/Materials | Discovered new exit (range 17) 14828 | -8/Materials | Build established: Scavenger-Mutant 15035 | -8/Materials | Central database locked down 15085 | -8/Materials | Entered Factory 15087 | -7/Factory | Reached level 14 15541 | -7/Factory | Build established: Scavenger-Gladiator 15592 | -7/Factory | Identified exit to Lower Caves 15598 | -7/Factory | Reached level 15 15921 | -7/Factory | Discovered new exit (range 10) 16079 | -7/Factory | Repaired Hacking Suite 16130 | -7/Factory | Build established: Scavenger-Mutant 16199 | -7/Factory | Reached level 16 16224 | -7/Factory | Garrison activated, responded to threat 16235 | -7/Factory | Core integrity fell below 50% 16240 | -7/Factory | P-70 Sage assimilated hostile G-47 Trooper 16276 | -7/Factory | Reached level 17 16277 | -7/Factory | Upgraded with Utility slot (x1) 16277 | -7/Factory | Upgraded with Weapon slot (x1) 16285 | -7/Factory | First assault squad dispatched 16352 | -7/Factory | High security lockdown imminent 16417 | -7/Factory | Entered Lower Caves 16469 | -7/Lower Caves | Discovered new exit (range 17) 16696 | -7/Lower Caves | Build established: Scavenger-Ninja 16715 | -7/Lower Caves | Entered another Lower Caves area 16722 | -7/Lower Caves | Discovered new exit (range 15) 16764 | -7/Lower Caves | Encountered a Warlord checkpoint 16801 | -7/Lower Caves | Identified exit to Zion 16908 | -7/Lower Caves | Entered Zion 16947 | -7/Zion | Discovered new exit (range 13) 17057 | -7/Zion | Acquired unknown access codes intercepted by a Zionite 17063 | -7/Zion | Learned Factory terminal intel 17182 | -7/Zion | Found Prototype Processor 17182 | -7/Zion | Identified Spectral Analyzer 17185 | -7/Zion | Found Prototype Processor 17185 | -7/Zion | Identified Exp. Armor Integrity Analyzer 17190 | -7/Zion | Found Prototype Processor 17190 | -7/Zion | Identified Exp. Melee Analysis Suite 17192 | -7/Zion | Found Prototype Processor 17192 | -7/Zion | Identified Exp. Target Analyzer 17285 | -7/Zion | Learned location of Data Miner (-6) 17404 | -7/Zion | Discovered new exit (range 21) 17419 | -7/Zion | Gained Derelict followers 17442 | -7/Zion | Opened final containment barrier to the Deep Caves 17454 | -7/Zion | Saw the warning signs outside the Deep Caves entrance 17473 | -7/Zion | Entered Deep Caves 17473 | -7/Deep Caves | Accompanied by 5 allies 17474 | -7/Deep Caves | Met 5H-AD0 17491 | -7/Deep Caves | Build established: Hacker-Ninja 17620 | -7/Deep Caves | Z-Facility disabled 17637 | -7/Deep Caves | Attacked by Z-Imprinter 17642 | -7/Deep Caves | Allies destroyed Z-Imprinter 18067 | -7/Deep Caves | Found Prototype Protection 18067 | -7/Deep Caves | Identified Zio. Weapon Casing 18217 | -7/Deep Caves | Discovered new exit (range 11) 18321 | -7/Deep Caves | Spotted as-16828 18347 | -7/Deep Caves | Triggered Deep Caves wall 18348 | -7/Deep Caves | Exposed GOLEM chamber 18350 | -7/Deep Caves | Spotted AS-41788 18353 | -7/Deep Caves | Destroyed as-16828 18368 | -7/Deep Caves | Core integrity fell below 20% 18373 | -7/Deep Caves | Destroyed by as-66989 with Assembled Heavy Rifle Last Messages --------------- 18365_ as-99612 destroyed. 18365_ as-45290 destroyed. 18365_ as-18652 destroyed. 18365_ as-95066 destroyed. 18365_ as-76600 destroyed. 18365_ as-18144 destroyed. 18365_ Med. Reflective Plating destroyed. 18367_ Zio. Glidesys I severed. 18368_ as-49454 destroyed. 18369_ as-74286 misfires. 18370_ Destroyed Carbon-fiber Leg. 18372_ as-48702 destroyed. 18372_ Destroyed Asb. Hover Unit. 18372_ as-50761 destroyed. 18372_ as-20724 destroyed. 18372_ as-18371 destroyed. 18372_ as-24268 destroyed. 18372_ as-66712 destroyed. 18372_ Knocked back. 18372_ as-99002 destroyed. Map ----- +----------------------------------------------------+ | ????????""??????? ?? ###??######?## | | ??""""??"" ? ?? ??### ########## | | ??#?????? ??? ? ### ########### # | | ????"?? ?? ?? ? # ? ######?### ## | | "??? # ############### ### | | ????? ? ############ ## | | ??"??? | ####### ## | | ?"? ?? || = #########< # #### | | ?"???? = ################### | | """? ? = g ##########?####### | | """ ? = ############?##### | | """""""? | ##?############### | | ???###### = = M ################# | | ?"""""#""! a ################# | | """??"?""" l #### | | "?""""??"" h * #### ########### | | ""???"#"?" % == ** #### ########### | | ""???"#?"" G= = ### ########## | | """?"??## ### ########## | | ?""""?""" % % = l ### ###?###### | | ?""?""?"" ! a=== = ## ######### | | ???"?""?" a % ###### | | ?"?"?""?""" %a=% a #### ###### | | "?""""""" % a g #### ###### | | """"??"""" %% %% ;# #### ###### | | ""??""?"" aa%%a@a ## #### ###### | | """"""?""" % % ## #### | | "??""???" %a# ;;# ##### | | "?"???""" #### ## ## ######?#### ## | | ""??"?"?""" ###### ## #####?########### ## | | ?"???"?""" ?##### ######?##?############ | | ""??"?"""##################################??# | | | | | | | | | | | | | | | | | | | | | | | | | | | | | | | | | | | | | +----------------------------------------------------+ Best States ------------- Heat Dissipation 43 Energy Generation 49 Energy Capacity 2300 Matter Stores 300 Matter Capacity 300 Sight Range 17 Robot Scan Range 12 Terrain Scan Range 24 Terrain Scan Density 210 Jamming Range 16 Armor Coverage 900 Resistance: TH 15 Propulsion Shielding 33 Evasion (%) 64 Targeting Accuracy 12 Target Analysis 12 Core Analysis 10 Armor Integrity Analysis 90 Recoil Reduction 2 Offensive Hacking 30 Defensive Hacking 20 Item Schematics ----------------- Mining Laser | -10/Materials | Hacked Cmb. Airjet | -9/Materials | Scanalyzed Lgt. Angular Momentum Engine | -9/Materials | Scanalyzed Imp. Light Armor Plating | -9/Materials | Scanalyzed Imp. EM Shotgun | -9/Materials | Scanalyzed Rocket Launcher | -9/Materials | Scanalyzed Adv. Treads | -9/Materials | Scanalyzed Mak. Sword | -8/Materials | Scanalyzed Powered Armor | -8/Materials | Hacked Actuator Array | -8/Materials | Hacked System Purifier | -7/Factory | Scanalyzed Cmb. Antigrav System | -7/Factory | Scanalyzed Imp. Shield Generator | -7/Factory | Scanalyzed Adv. Transmission Jammer | -7/Factory | Scanalyzed Adv. Terrain Scanner | -7/Factory | Scanalyzed Power Maul | -7/Factory | Scanalyzed Riot Gun | -7/Zion | Free Battle Rifle | -7/Zion | Free Flamer | -7/Zion | Free Robot Schematics ------------------ O-16 Technician | -10/Materials | Hacked Fabricated ------------ Nothing Alien Tech Used ----------------- None Achievements -------------- None Challenges ------------ None RPGLIKE | -11 -10 -10 -9 -9 -9 -8 -8 -7 -7 -7 -7 -7 --------- Run | Scr Mat Min Mat Min Exi Min Mat Fac Low Low Zio Dee Levels Raised 16 | . 1 2 4 1 . 2 2 4 . . . . XP Earned 28135 | 3000 2866 2090 6605 1282 169 2127 3665 5452 118 118 152 491 XP Spent 26980 | 2900 1600 1100 7060 800 1525 2800 3190 6005 . . . . Upgrades 41 | 10 2 1 8 1 3 2 3 11 . . . . Power Slot 1 | . . . . . . 1 . . . . . . Propulsion Slot 3 | 1 . . . 1 1 . . . . . . . Utility Slot 9 | 1 1 1 3 . . 1 1 1 . . . . Weapon Slot 3 | 1 1 . . . . . . 1 . . . . Core Integrity 3 | . . . . . 1 . . 2 . . . . Heat Dissipation 3 | . . . 3 . . . . . . . . . Mass Support 1 | 1 . . . . . . . . . . . . Inventory Capacity 5 | 2 . . 2 . . . . 1 . . . . Sight Range 1 | 1 . . . . . . . . . . . . Sensor Range 6 | . . . . . . . . 6 . . . . Terrain Scan Density 2 | 1 . . . . . . 1 . . . . . Ranged Accuracy 1 | . . . . . 1 . . . . . . . Hack Attack % 1 | 1 . . . . . . . . . . . . Hack Defense % 2 | 1 . . . . . . 1 . . . . . Protomatter Created 2194 | 125 195 101 294 104 8 140 645 250 . . . 332 Integrity Restored 6034 | 368 426 546 708 255 . 420 1272 1534 . . . 505 Core 4513 | 347 426 521 502 191 . 420 765 1046 . . . 295 Parts 1521 | 21 . 25 206 64 . . 507 488 . . . 210 Protomatter Decayed 449 | 8 35 . 31 118 8 . 159 70 . . . 20 Game ------ Seed AntigravHardlightNukerbomber Manual? 0 Play Time 02:29:21 Cumulative 272.8 hours Start 2020.09.23 @ 11:46:49 End 2020.09.25 @ 18:56:47 Sessions 7 Manual Loads 0 Difficulty Rogue Special Mode Winter2019/RPGLIKE Game No. 111 Rogue 111 Adventurer 0 Explorer 0 Win Type - Total 4 Types 3/0/0/1/0/0/0/0/0 Lore% 83 Gallery% 86 Achievement% 70 Wizard Run 0 Options --------- ASCII 0 Keyboard 0 Movement Numpad Keybinds 0 Fullscreen 1 Font 18/SmallcapsGlow Map View 76x50 Tactical HUD 1 Map Filters NONE Filters NONE Steam 1 RUN: ff63f84b-6559-452a-bd33-2af0a1a9a301